fUSD/lending_fUSD_20250222
["ID","MTS","AMOUNT","RATE_DAILY","PERIOD"]
[354024614,1740183081290,-795.59,0.00012515,2]
[354024615,1740183081301,-572.95458472,0.00012515,2]
[354024616,1740183081310,-669.24,0.00012515,2]
[354024617,1740183081319,-1119.15,0.00012515,2]
[354024618,1740183081329,-543.65,0.00012515,2]
[354024619,1740183081338,-696.77,0.00012515,2]
[354024620,1740183081347,-515.61,0.00012515,2]
[354024621,1740183081357,-500.0,0.00012515,2]
[354024622,1740183081367,-680.03,0.00012515,2]
[354024623,1740183081377,-1539.36,0.00012515,2]
[354024624,1740183081387,-500.0,0.00012515,2]
[354024625,1740183081396,-282.9,0.00012515,2]
[354024626,1740183081406,-1475.55,0.00012515,2]
[354024627,1740183081416,-822.9,0.00012515,2]
[354024628,1740183081425,-1076.85,0.00012515,2]
[354024629,1740183081435,-1766.78,0.00012515,2]
[354024630,1740183081444,-3156.85,0.00012515,2]
[354024631,1740183081454,-732.58,0.00012515,2]
[354024632,1740183081463,-676.08,0.00012515,2]
[354024633,1740183081473,-500.0,0.00012517,2]
[354024634,1740183081482,-500.0,0.00012517,2]
[354024635,1740183081491,-500.0,0.00012517,2]
[354024636,1740183081500,-500.0,0.00012517,2]
[354024637,1740183081510,-681.97,0.00012517,2]
[354024638,1740183081519,-508.9,0.00012517,2]
[354024639,1740183081528,-476.21648672,0.00012517,2]
[354024640,1740183081537,-925.32,0.00012519,2]
[354024641,1740183081547,-500.0,0.00012519,2]
[354024642,1740183081557,-981.73,0.00012519,2]
[354024643,1740183081566,-1225.91,0.00012519,2]
[354024644,1740183081576,-1000.0,0.00012519,2]
[354024645,1740183081585,-1219.38,0.00012519,2]
[354024646,1740183081594,-1112.17,0.00012519,2]
[354024647,1740183081604,-1281.07,0.00012519,2]
[354024648,1740183081613,-534.97,0.00012519,2]
[354024649,1740183081623,-1531.07,0.00012519,2]
[354024650,1740183081632,-500.0,0.0001252,2]
[354024651,1740183081641,-173.27022059,0.00012546,2]
[354024652,1740183081651,-4290.41546244,0.00012584,2]
[354024653,1740183081660,-500.0,0.00012596,2]
[354024654,1740183081669,-270.553652,0.00012596,2]
[354024655,1740183081678,-500.0,0.00012596,2]
[354024656,1740183081687,-1851.02,0.00012596,2]
[354024657,1740183081697,-659.88,0.00012596,2]
[354024658,1740183081707,-500.0,0.00012596,2]
[354024659,1740183081717,-319.961925,0.00012596,2]
[354024660,1740183081728,-500.0,0.00012596,2]
[354024661,1740183081737,-674.0,0.00012596,2]
[354024662,1740183081747,-704.65,0.00012596,2]
[354024663,1740183081756,-662.23,0.00012596,2]
[354024664,1740183081767,-847.59,0.00012596,2]
[354024665,1740183081776,-780.91,0.00012596,2]
[354024666,1740183081786,-1102.75,0.00012596,2]
[354024667,1740183081795,-500.0,0.00012596,2]
[354024668,1740183081804,-546.67,0.00012596,2]
[354024669,1740183081814,-804.86,0.00012596,2]
[354024670,1740183081823,-1329.87,0.00012596,2]
[354024671,1740183081833,-656.74,0.00012596,2]
[354024672,1740183081842,-1147.29,0.00012596,2]
[354024673,1740183081851,-901.63,0.00012596,2]
[354024674,1740183081860,-872.87,0.00012596,2]
[354024675,1740183081869,-500.0,0.00012596,2]
[354024676,1740183081878,-1312.42,0.00012596,2]
[354024677,1740183081887,-2825.2,0.00012596,2]
[354024678,1740183081898,-793.93,0.00012596,2]
[354024679,1740183081907,-500.0,0.00012596,2]
[354024680,1740183081917,-500.0,0.00012596,2]
[354024681,1740183081926,-972.62,0.00012596,2]
[354024682,1740183081936,-500.0,0.00012596,2]
[354024683,1740183081945,-1570.12,0.00012596,2]
[354024684,1740183081956,-881.42,0.00012596,2]
[354024685,1740183081966,-1689.55,0.00012596,2]
[354024686,1740183081976,-1867.77,0.00012596,2]
[354024687,1740183081986,-918.01,0.00012596,2]
[354024688,1740183081995,-500.0,0.00012596,2]
[354024689,1740183082005,-1105.42,0.00012596,2]
[354024690,1740183082020,-904.45,0.00012596,2]
[354024691,1740183082030,-1060.54,0.00012596,2]
[354024692,1740183082041,-1773.75,0.00012596,2]
[354024693,1740183082050,-500.0,0.00012596,2]
[354024694,1740183082061,-670.78,0.00012596,2]
[354024695,1740183082070,-1166.03,0.00012596,2]
[354024696,1740183082080,-697.16,0.00012596,2]
[354024697,1740183082093,-500.0,0.00012596,2]
[354024698,1740183082104,-607.72,0.00012596,2]
[354024699,1740183082114,-618.06,0.00012596,2]
[354024700,1740183082124,-500.0,0.00012598,2]
[354024701,1740183082134,-500.0,0.00012598,2]
[354024702,1740183082143,-500.0,0.00012598,2]
[354024703,1740183082152,-513.6,0.00012598,2]
[354024704,1740183082162,-636.93,0.00012598,2]
[354024705,1740183082171,-238.96,0.00012598,2]
[354024706,1740183082180,-500.0,0.00012598,2]
[354024707,1740183082189,-500.0,0.00012598,2]
[354024708,1740183082199,-500.0,0.00012598,2]
[354024709,1740183082208,-500.0,0.00012598,2]
[354024710,1740183082218,-500.0,0.00012598,2]
[354024711,1740183082227,-672.25,0.00012598,2]
[354024712,1740183082236,-500.0,0.00012598,2]
[354024713,1740183082245,-604.62,0.00012598,2]
[354024714,1740183082254,-914.39,0.00012598,2]
[354024715,1740183082265,-740.85,0.00012598,2]
[354024716,1740183082274,-746.87,0.00012598,2]
[354024717,1740183082284,-500.0,0.00012598,2]
[354024718,1740183082294,-695.9,0.00012598,2]
[354024719,1740183082303,-500.0,0.00012598,2]
[354024720,1740183082312,-500.0,0.00012598,2]
[354024721,1740183082322,-1020.33,0.00012598,2]
[354024722,1740183082331,-500.0,0.00012598,2]
[354024723,1740183082340,-507.16,0.00012598,2]
[354024724,1740183082350,-795.59,0.00012598,2]
[354024725,1740183082360,-669.24,0.00012598,2]
[354024726,1740183082369,-1119.15,0.00012598,2]
[354024727,1740183082379,-543.65,0.00012598,2]
[354024728,1740183082388,-696.77,0.00012598,2]
[354024729,1740183082398,-515.61,0.00012598,2]
[354024730,1740183082407,-500.0,0.00012598,2]
[354024731,1740183082417,-680.03,0.00012598,2]
[354024732,1740183082427,-1539.36,0.00012598,2]
[354024733,1740183082436,-251.55,0.00012598,2]
[354024734,1740183082444,-1475.55,0.00012598,2]
[354024735,1740183082454,-822.9,0.00012598,2]
[354024736,1740183082464,-1076.85,0.00012598,2]
[354024737,1740183082473,-1766.78,0.00012598,2]
[354024738,1740183082483,-3156.85,0.00012598,2]
[354024739,1740183082493,-732.58,0.00012598,2]
[354024740,1740183082502,-676.08,0.00012598,2]
[354024741,1740183082512,-403.32894458,0.00012599,2]
[354024742,1740183082521,-500.0,0.00012599,2]
[354024743,1740183082531,-500.0,0.00012599,2]
[354024744,1740183082540,-500.0,0.00012599,2]
[354024745,1740183082549,-681.97,0.00012599,2]
[354024746,1740183082558,-925.32,0.00012601,2]
[354024747,1740183082568,-500.0,0.00012601,2]
[354024748,1740183082577,-981.73,0.00012601,2]
[354024749,1740183082586,-1038.16947624,0.00012601,2]
[354024750,1740183289534,1313.44,8.671e-05,2]
[354024751,1740183389413,497.0,8.767e-05,2]
[354024753,1740183966991,6720.21771907,8e-05,2]
[354024791,1740184232228,-387.0,9.9e-05,2]
[354024792,1740184232237,-331.78087629,9.99e-05,2]
[354024793,1740184232249,-120.23797332,9.99e-05,2]
[354024794,1740184232258,-300.0,9.999e-05,2]
[354024795,1740184232267,-546.22202668,0.0001,2]
[354024796,1740184232288,-3.77797332,0.0001,2]
[354024797,1740184232298,-527.27562368,0.0001,2]
[354024798,1740184232346,-12815.57539801,0.0001,2]
[354024799,1740184232457,-33097.9723701,0.0001,2]
[354024800,1740184232468,-575.10458265,0.0001,2]
[354024822,1740184238088,-1295.99793836,0.0001,2]
[354024823,1740184238099,-4368.30797813,0.0001,2]
[354024824,1740184238144,-3578.24173315,0.0001,2]
[354024825,1740184238202,-353.01173433,0.0001,2]
[354024826,1740184238214,-1019.93882678,0.0001,2]
[354024827,1740184238262,-300.32,0.0001,2]
[354024828,1740184238273,-974.16207443,0.0001,2]
[354024829,1740184238374,-1021.65583056,0.0001,2]
[354024830,1740184238386,-2695.6723236,0.0001,2]
[354025031,1740184240314,-434.71481276,0.0001,2]
[354025032,1740184240326,-291.159,0.0001,2]
[354025033,1740184240337,-288.351,0.0001,2]
[354025034,1740184240348,-1042.51008774,0.0001,2]
[354025039,1740184240424,-498.81401519,0.0001,2]
[354025062,1740184240643,-43691.7677434,0.0001,2]
[354025065,1740184240653,-200.0,0.00010059,2]
[354025066,1740184240662,-454.91,0.00010109,2]
[354025068,1740184240672,-166.28,0.0001016,2]
[354025070,1740184240681,-2000.0,0.00010303,2]
[354025072,1740184240690,-1500.0,0.0001031,2]
[354025074,1740184240700,-897.26,0.00010375,2]
[354025076,1740184240709,-1000.0,0.00010386,2]
[354025078,1740184240718,-23900.0,0.00010507,2]
[354025079,1740184240728,-200.0,0.0001056,2]
[354025081,1740184240737,-9025.94,0.0001056,2]
[354025083,1740184240746,-6053.93,0.0001056,2]
[354025085,1740184240755,-5551.0,0.000106,5]
[354025087,1740184240765,-166.7,0.00010623,2]
[354025089,1740184240774,-999.99,0.00010623,2]
[354025091,1740184240783,-500.0,0.0001068,2]
[354025093,1740184240793,-774.73,0.00010874,2]
[354025095,1740184240802,-776.16,0.00010884,2]
[354025098,1740184240811,-440.33,0.00010884,2]
[354025099,1740184240821,-1313.44,0.00010935,2]
[354025101,1740184240831,-159.18,0.00011175,2]
[354025103,1740184240840,-422.09270738,0.0001118,2]
[354025105,1740184240849,-517.16658339,0.0001118,2]
[354025107,1740184240858,-5000.0,0.00011181,2]
[354025109,1740184240867,-1066.10210729,0.00011198,2]
[354025111,1740184240876,-503.00902072,0.00011199,2]
[354025113,1740184240885,-599.25,0.00011199,2]
[354025115,1740184240895,-500.0,0.00011199,2]
[354025117,1740184240904,-500.0,0.00011199,2]
[354025119,1740184240914,-524.11,0.00011199,2]
[354025121,1740184240924,-500.0,0.00011199,2]
[354025123,1740184240933,-500.0,0.00011199,2]
[354025125,1740184240942,-507.2,0.00011199,2]
[354025127,1740184240951,-500.0,0.00011199,2]
[354025129,1740184240960,-500.0,0.00011199,2]
[354025131,1740184240969,-500.0,0.00011199,2]
[354025133,1740184240978,-180.26852773,0.00011199,2]
[354025135,1740184240988,-500.0,0.00011199,2]
[354025137,1740184240997,-500.0,0.00011199,2]
[354025139,1740184241006,-500.0,0.00011199,2]
[354025141,1740184241015,-500.0,0.00011199,2]
[354025144,1740184241024,-500.0,0.00011199,2]
[354025147,1740184241034,-500.0,0.00011199,2]
[354025150,1740184241042,-500.0,0.00011199,2]
[354025153,1740184241051,-500.0,0.00011199,2]
[354025156,1740184241060,-500.0,0.00011199,2]
[354025158,1740184241071,-500.0,0.00011199,2]
[354025160,1740184241080,-500.0,0.00011199,2]
[354025162,1740184241089,-500.0,0.00011199,2]
[354025164,1740184241098,-500.0,0.00011199,2]
[354025166,1740184241107,-500.0,0.00011199,2]
[354025168,1740184241116,-500.0,0.00011199,2]
[354025170,1740184241125,-500.0,0.00011199,2]
[354025172,1740184241134,-500.0,0.00011199,2]
[354025175,1740184241145,-500.0,0.00011199,2]
[354025177,1740184241154,-500.0,0.00011199,2]
[354025179,1740184241164,-500.0,0.00011199,2]
[354025180,1740184241173,-500.0,0.00011199,2]
[354025182,1740184241182,-500.0,0.00011199,2]
[354025184,1740184241191,-500.0,0.00011199,2]
[354025187,1740184241201,-521.61,0.00011199,2]
[354025189,1740184241210,-500.0,0.00011199,2]
[354025190,1740184241219,-500.0,0.00011199,2]
[354025192,1740184241228,-501.20683622,0.000112,2]
[354025195,1740184241237,-500.0,0.000112,2]
[354025197,1740184241246,-500.0,0.000112,2]
[354025199,1740184241256,-501.04444578,0.000112,2]
[354025201,1740184241265,-500.0,0.000112,2]
[354025203,1740184241275,-409.64356582,0.000112,2]
[354025204,1740184241285,-500.0,0.000112,2]
[354025206,1740184241294,-500.0,0.000112,2]
[354025209,1740184241303,-500.0,0.000112,2]
[354025211,1740184241313,-530.86,0.000112,2]
[354025213,1740184241322,-316.83736404,0.00011263,2]
[354025215,1740184241331,-500.0,0.00011279,2]
[354025216,1740184241340,-500.0,0.00011279,2]
[354025218,1740184241349,-500.0,0.00011279,2]
[354025220,1740184241358,-500.0,0.00011279,2]
[354025222,1740184241367,-500.0,0.00011279,2]
[354025224,1740184241375,-500.0,0.00011279,2]
[354025226,1740184241385,-500.0,0.00011279,2]
[354025228,1740184241396,-500.0,0.00011279,2]
[354025230,1740184241405,-500.0,0.00011279,2]
[354025233,1740184241415,-500.0,0.00011279,2]
[354025235,1740184241423,-500.0,0.00011279,2]
[354025237,1740184241432,-500.0,0.00011279,2]
[354025238,1740184241441,-500.0,0.00011279,2]
[354025241,1740184241451,-500.0,0.00011279,2]
[354025242,1740184241461,-500.0,0.00011279,2]
[354025244,1740184241470,-500.0,0.00011279,2]
[354025246,1740184241478,-500.0,0.00011279,2]
[354025249,1740184241489,-500.0,0.00011279,2]
[354025251,1740184241498,-500.0,0.00011279,2]
[354025253,1740184241507,-500.0,0.00011279,2]
[354025255,1740184241516,-500.0,0.00011279,2]
[354025257,1740184241525,-580.44,0.00011279,2]
[354025259,1740184241534,-547.09,0.00011279,2]
[354025261,1740184241543,-500.0,0.00011279,2]
[354025263,1740184241552,-500.0,0.00011279,2]
[354025265,1740184241561,-500.0,0.00011279,2]
[354025267,1740184241571,-500.0,0.00011279,2]
[354025269,1740184241581,-500.0,0.00011279,2]
[354025271,1740184241589,-582.07036391,0.00011279,2]
[354025273,1740184241598,-500.0,0.0001128,2]
[354025275,1740184241607,-502.82582375,0.0001128,2]
[354025277,1740184241616,-500.0,0.0001128,2]
[354025279,1740184241626,-500.0,0.0001128,2]
[354025281,1740184241635,-500.0,0.0001128,2]
[354025283,1740184241644,-500.0,0.0001128,2]
[354025285,1740184241653,-500.0,0.0001128,2]
[354025287,1740184241662,-598.38857285,0.0001128,2]
[354025289,1740184241671,-502.88093868,0.0001128,2]
[354025291,1740184241680,-217.86466076,0.0001128,2]
[354025293,1740184241690,-500.0,0.0001128,2]
[354025295,1740184241698,-500.0,0.0001128,2]
[354025297,1740184241707,-500.0,0.0001128,2]
[354025298,1740184241716,-500.0,0.0001128,2]
[354025300,1740184241726,-500.0,0.0001128,2]
[354025302,1740184241735,-500.0,0.0001128,2]
[354025304,1740184241743,-562.43837563,0.0001128,2]
[354025306,1740184241752,-500.61873143,0.0001128,2]
[354025308,1740184241762,-504.33478634,0.0001128,2]
[354025310,1740184241771,-500.0,0.0001128,2]
[354025313,1740184241780,-500.0,0.0001128,2]
[354025314,1740184241789,-500.0,0.0001128,2]
[354025316,1740184241798,-500.0,0.0001128,2]
[354025319,1740184241807,-500.0,0.0001128,2]
[354025320,1740184241816,-500.0,0.0001128,2]
[354025322,1740184241825,-500.0,0.0001128,2]
[354025324,1740184241835,-501.8576505,0.0001128,2]
[354025326,1740184241844,-500.0,0.0001128,2]
[354025328,1740184241854,-500.0,0.0001128,2]
[354025331,1740184241865,-500.0,0.0001128,2]
[354025332,1740184241877,-500.0,0.0001128,2]
[354025334,1740184241889,-500.0,0.0001128,2]
[354025336,1740184241900,-500.0,0.0001128,2]
[354025338,1740184241909,-500.0,0.0001128,2]
[354025340,1740184241918,-500.0,0.0001128,2]
[354025343,1740184241927,-500.0,0.0001128,2]
[354025344,1740184241936,-356.65382723,0.0001128,2]
[354025346,1740184241945,-501.42547574,0.0001128,2]
[354025348,1740184241954,-500.0,0.0001128,2]
[354025350,1740184241964,-500.0,0.0001128,2]
[354025352,1740184241973,-501.15554484,0.0001128,2]
[354025354,1740184241982,-500.0,0.0001128,2]
[354025356,1740184241991,-500.0,0.0001128,2]
[354025358,1740184242000,-500.0,0.0001128,2]
[354025360,1740184242009,-500.0,0.0001128,2]
[354025363,1740184242019,-502.26121347,0.0001128,2]
[354025365,1740184242028,-500.0,0.0001128,2]
[354025367,1740184242037,-500.0,0.0001128,2]
[354025368,1740184242046,-500.0,0.0001128,2]
[354025370,1740184242055,-500.0,0.0001128,2]
[354025372,1740184242064,-500.0,0.0001128,2]
[354025374,1740184242074,-500.0,0.0001128,2]
[354025376,1740184242083,-500.0,0.0001128,2]
[354025378,1740184242092,-500.0,0.0001128,2]
[354025380,1740184242101,-500.0,0.0001128,2]
[354025382,1740184242110,-500.0,0.0001128,2]
[354025384,1740184242119,-500.0,0.0001128,2]
[354025386,1740184242128,-500.0,0.0001128,2]
[354025388,1740184242137,-501.90569672,0.0001128,2]
[354025390,1740184242148,-500.0,0.0001128,2]
[354025392,1740184242157,-503.19526695,0.0001128,2]
[354025394,1740184242167,-500.0,0.0001128,2]
[354025396,1740184242176,-500.0,0.0001128,2]
[354025398,1740184242185,-500.0,0.0001128,2]
[354025400,1740184242194,-500.0,0.0001128,2]
[354025402,1740184242204,-500.0,0.0001128,2]
[354025404,1740184242213,-500.0,0.0001128,2]
[354025406,1740184242222,-500.0,0.0001128,2]
[354025408,1740184242231,-500.0,0.0001128,2]
[354025410,1740184242240,-500.0,0.0001128,2]
[354025412,1740184242250,-503.42555608,0.0001128,2]
[354025414,1740184242259,-500.0,0.0001128,2]
[354025416,1740184242267,-500.0,0.0001128,2]
[354025418,1740184242276,-500.0,0.0001128,2]
[354025420,1740184242285,-500.0,0.0001128,2]
[354025422,1740184242294,-500.0,0.0001128,2]
[354025424,1740184242303,-500.0,0.0001128,2]
[354025426,1740184242312,-500.0,0.0001128,2]
[354025428,1740184242322,-500.0,0.0001128,2]
[354025430,1740184242332,-500.0,0.0001128,2]
[354025432,1740184242341,-500.0,0.0001128,2]
[354025435,1740184242350,-500.0,0.0001128,2]
[354025437,1740184242359,-500.0,0.0001128,2]
[354025438,1740184242370,-192.84853407,0.0001128,2]
[354025440,1740184242379,-500.0,0.0001128,2]
[354025441,1740184242389,-500.0,0.0001128,2]
[354025442,1740184242401,-241.84799949,0.0001128,2]
[354025443,1740184242410,-500.0,0.0001128,2]
[354025444,1740184242420,-500.0,0.0001128,2]
[354025445,1740184242429,-500.0,0.0001128,2]
[354025446,1740184242439,-500.0,0.0001128,2]
[354025447,1740184242448,-500.0,0.0001128,2]
[354025449,1740184242457,-153.35418015,0.0001128,2]
[354025451,1740184242466,-500.0,0.0001128,2]
[354025453,1740184242475,-500.0,0.0001128,2]
[354025455,1740184242484,-500.0,0.0001128,2]
[354025456,1740184242494,-500.0,0.0001128,2]
[354025458,1740184242503,-500.0,0.0001128,2]
[354025461,1740184242512,-500.0,0.0001128,2]
[354025463,1740184242522,-500.0,0.0001128,2]
[354025465,1740184242531,-500.0,0.0001128,2]
[354025466,1740184242541,-500.0,0.0001128,2]
[354025468,1740184242551,-500.0,0.0001128,2]
[354025470,1740184242560,-500.0,0.0001128,2]
[354025472,1740184242569,-500.0,0.0001128,2]
[354025474,1740184242578,-500.0,0.0001128,2]
[354025476,1740184242588,-500.0,0.0001128,2]
[354025478,1740184242597,-500.0,0.0001128,2]
[354025480,1740184242607,-226.95155046,0.0001128,2]
[354025482,1740184242616,-500.0,0.0001128,2]
[354025484,1740184242625,-500.0,0.0001128,2]
[354025486,1740184242634,-500.0,0.0001128,2]
[354025488,1740184242643,-500.00461034,0.0001128,2]
[354025490,1740184242653,-500.0,0.0001128,2]
[354025492,1740184242663,-501.94024397,0.0001128,2]
[354025494,1740184242672,-500.0,0.0001128,2]
[354025496,1740184242682,-500.0,0.0001128,2]
[354025498,1740184242691,-500.0,0.0001128,2]
[354025500,1740184242700,-500.0,0.0001128,2]
[354025502,1740184242709,-502.53707953,0.0001128,2]
[354025504,1740184242718,-500.0,0.0001128,2]
[354025506,1740184242727,-500.0,0.0001128,2]
[354025508,1740184242736,-504.39950263,0.0001128,2]
[354025510,1740184242745,-500.0,0.0001128,2]
[354025512,1740184242754,-500.0,0.0001128,2]
[354025514,1740184242764,-500.0,0.0001128,2]
[354025516,1740184242773,-500.0,0.0001128,2]
[354025518,1740184242782,-500.0,0.0001128,2]
[354025520,1740184242791,-500.0,0.0001128,2]
[354025522,1740184242800,-500.0,0.0001128,2]
[354025524,1740184242810,-500.0,0.0001128,2]
[354025526,1740184242819,-500.0,0.0001128,2]
[354025528,1740184242828,-397.98018295,0.0001128,2]
[354025530,1740184242837,-500.0,0.0001128,2]
[354025532,1740184242846,-500.0,0.0001128,2]
[354025534,1740184242855,-500.0,0.0001128,2]
[354025536,1740184242864,-500.0,0.0001128,2]
[354025538,1740184242874,-500.0,0.0001128,2]
[354025540,1740184242883,-500.0,0.0001128,2]
[354025542,1740184242893,-500.0,0.0001128,2]
[354025544,1740184242902,-153.96410646,0.0001128,2]
[354025546,1740184242911,-500.0,0.0001128,2]
[354025550,1740184242921,-545.44737856,0.0001128,2]
[354025553,1740184242931,-500.0,0.0001128,2]
[354025556,1740184242941,-500.0,0.0001128,2]
[354025558,1740184242950,-500.0,0.0001128,2]
[354025560,1740184242959,-500.0,0.0001128,2]
[354025562,1740184242968,-500.0,0.0001128,2]
[354025564,1740184242978,-500.0,0.0001128,2]
[354025566,1740184242987,-500.0,0.0001128,2]
[354025568,1740184242996,-500.0,0.0001128,2]
[354025570,1740184243006,-500.0,0.0001128,2]
[354025572,1740184243016,-500.0,0.0001128,2]
[354025574,1740184243025,-500.0,0.0001128,2]
[354025576,1740184243035,-500.0,0.0001128,2]
[354025578,1740184243044,-500.92459981,0.0001128,2]
[354025580,1740184243054,-500.0,0.0001128,2]
[354025582,1740184243064,-500.0,0.0001128,2]
[354025584,1740184243073,-330.30072323,0.0001128,2]
[354025586,1740184243083,-614.6645642,0.0001128,2]
[354025588,1740184243092,-500.0,0.0001128,2]
[354025591,1740184243102,-500.0,0.0001128,2]
[354025593,1740184243111,-500.0,0.0001128,2]
[354025595,1740184243121,-210.83103395,0.0001128,2]
[354025597,1740184243130,-500.0,0.0001128,2]
[354025599,1740184243140,-500.0,0.0001128,2]
[354025601,1740184243151,-500.0,0.0001128,2]
[354025603,1740184243160,-500.0,0.0001128,2]
[354025605,1740184243169,-500.0,0.0001128,2]
[354025607,1740184243179,-500.0,0.0001128,2]
[354025609,1740184243188,-504.0436052,0.0001128,2]
[354025611,1740184243200,-500.0,0.0001128,2]
[354025613,1740184243210,-500.0,0.0001128,2]
[354025615,1740184243219,-500.0,0.0001128,2]
[354025652,1740184243426,-500.0,0.0001128,2]
[354025654,1740184243438,-317.50264656,0.0001128,2]
[354025657,1740184243448,-626.85,0.0001128,2]
[354025659,1740184243457,-500.0,0.0001128,2]
[354025661,1740184243467,-500.0,0.0001128,2]
[354025664,1740184243478,-500.0,0.0001128,2]
[354025667,1740184243488,-512.73302451,0.0001128,2]
[354025669,1740184243497,-500.0,0.0001128,2]
[354025671,1740184243507,-346.18386486,0.0001128,2]
[354025674,1740184243516,-500.0,0.0001128,2]
[354025677,1740184243526,-500.0,0.0001128,2]
[354025679,1740184243535,-500.0,0.0001128,2]
[354025681,1740184243544,-401.29955075,0.0001128,2]
[354025684,1740184243554,-500.0,0.0001128,2]
[354025687,1740184243563,-500.0,0.0001128,2]
[354025690,1740184243573,-500.0,0.0001128,2]
[354025692,1740184243582,-500.0,0.0001128,2]
[354025694,1740184243591,-500.0,0.0001128,2]
[354025697,1740184243601,-500.0,0.0001128,2]
[354025699,1740184243610,-500.0,0.0001128,2]
[354025701,1740184243620,-500.0,0.0001128,2]
[354025704,1740184243629,-500.0,0.0001128,2]
[354025707,1740184243639,-500.0,0.0001128,2]
[354025709,1740184243648,-500.0,0.0001128,2]
[354025711,1740184243657,-333.84367106,0.0001128,2]
[354025714,1740184243666,-500.0,0.0001128,2]
[354025716,1740184243675,-500.0,0.0001128,2]
[354025718,1740184243684,-500.0,0.0001128,2]
[354025721,1740184243693,-500.0,0.0001128,2]
[354025724,1740184243703,-589.17995331,0.0001128,2]
[354025727,1740184243712,-500.0,0.0001128,2]
[354025729,1740184243722,-500.0,0.0001128,2]
[354025731,1740184243731,-500.0,0.0001128,2]
[354025734,1740184243741,-500.0,0.0001128,2]
[354025737,1740184243750,-500.0,0.0001128,2]
[354025740,1740184243759,-500.0,0.0001128,2]
[354025743,1740184243769,-500.0,0.0001128,2]
[354025744,1740184243779,-500.0,0.0001128,2]
[354025747,1740184243788,-512.01006996,0.0001128,2]
[354025750,1740184243798,-500.0,0.0001128,2]
[354025752,1740184243807,-500.0,0.0001128,2]
[354025754,1740184243817,-160.331528,0.0001128,2]
[354025757,1740184243828,-397.41633208,0.0001128,2]
[354025760,1740184243837,-500.0,0.0001128,2]
[354025763,1740184243847,-500.0,0.0001128,2]
[354025766,1740184243857,-500.0,0.0001128,2]
[354025767,1740184243866,-500.0,0.0001128,2]
[354025770,1740184243876,-500.0,0.0001128,2]
[354025772,1740184243885,-536.44396803,0.0001128,2]
[354025774,1740184243894,-1053.19,0.0001128,2]
[354025776,1740184243904,-500.0,0.0001128,2]
[354025777,1740184243914,-500.0,0.0001128,2]
[354025779,1740184243923,-500.0,0.0001128,2]
[354025781,1740184243932,-500.0,0.0001128,2]
[354025783,1740184243942,-500.0,0.0001128,2]
[354025786,1740184243952,-500.0,0.0001128,2]
[354025788,1740184243961,-500.0,0.0001128,2]
[354025791,1740184243971,-500.0,0.0001128,2]
[354025794,1740184243980,-500.0,0.0001128,2]
[354025797,1740184243989,-500.0,0.0001128,2]